fUSD/lending_fUSD_20251027
["ID","MTS","AMOUNT","RATE_DAILY","PERIOD"]
[392500136,1761572970835,-807.23,0.00021604,2]
[392500137,1761572970937,-1000.0,0.00021647,2]
[392500138,1761572970959,-1287.16881459,0.00021737,2]
[392500139,1761572971269,-789.12862709,0.00021737,2]
[392500144,1761573009981,160.0,0.00021717,120]
[392500145,1761573011598,160.0,0.00022802,120]
[392500146,1761573013364,160.0,0.00023942,120]
[392500147,1761573014294,160.0,0.0002514,120]
[392500148,1761573015660,160.0,0.00026397,120]
[392500149,1761573016979,160.0,0.00027716,120]
[392500150,1761573018417,160.0,0.00029102,120]
[392500152,1761573019816,160.0,0.00030557,120]
[392500153,1761573026239,162.0,0.00021,3]
[392500155,1761573031825,162.0,0.00021,4]
[392500159,1761573032513,-988.85,0.00021737,2]
[392500160,1761573032523,-160.0978,0.00021737,2]
[392500161,1761573032774,-263.1118144,0.00021737,2]
[392500162,1761573032786,-541.29294392,0.00021737,2]
[392500164,1761573032796,-195.0,0.00021751,2]
[392500166,1761573032805,-250.0,0.00021764,2]
[392500168,1761573032817,-195.0,0.00021789,2]
[392500170,1761573032827,-300.0,0.0002179,2]
[392500172,1761573032836,-283.0,0.0002179,2]
[392500174,1761573032845,-1200.0,0.0002179,2]
[392500176,1761573032855,-9479.1338054,0.00021791,2]
[392500178,1761573032864,-250.0,0.00021861,2]
[392500180,1761573032874,-181.08010149,0.00021918,2]
[392500182,1761573032883,-200.0,0.0002207,2]
[392500184,1761573032892,-1000.0,0.00022459,2]
[392500186,1761573032901,-216.25507034,0.00022466,2]
[392500187,1761573032911,-505.0,0.00022548,2]
[392500188,1761573032920,-504.0,0.00022932,2]
[392500189,1761573032930,-1318.8966649,0.00023,2]
[392500190,1761573032939,-400.0,0.00023,2]
[392500191,1761573032949,-1000.0,0.00023271,2]
[392500192,1761573032959,-420.0,0.00023683,2]
[392500193,1761573032969,-1000.0,0.00023742,2]
[392500194,1761573032979,-1680.0,0.00023795,2]
[392500195,1761573032989,-172.189095,0.000238,2]
[392500196,1761573032999,-702.68,0.00023836,2]
[392500197,1761573033009,-503.21409487,0.00023879,2]
[392500198,1761573033019,-500.0,0.00023879,2]
[392500199,1761573033029,-500.0,0.00023879,2]
[392500200,1761573033039,-193.0,0.00023911,2]
[392500201,1761573033048,-250.0,0.00023911,2]
[392500202,1761573033057,-2500.0,0.00023911,2]
[392500203,1761573033068,-2500.0,0.00023911,2]
[392500204,1761573033077,-2500.0,0.00023911,2]
[392500205,1761573033086,-2500.0,0.00023911,2]
[392500206,1761573033095,-2500.0,0.00023911,2]
[392500207,1761573033105,-300.0,0.00023911,2]
[392500208,1761573033114,-195.0,0.00023911,2]
[392500209,1761573033123,-10427.047186,0.00023975,2]
[392500210,1761573033133,-1000.0,0.00024083,2]
[392500211,1761573033142,-1000.0,0.00024427,2]
[392500212,1761573033151,-458.51713541,0.00024427,2]
[392500213,1761573033161,-195.04,0.00024658,2]
[392500214,1761573033170,-619.05,0.00024799,2]
[392500215,1761573033179,-1919.52126039,0.000248,2]
[392500216,1761573033189,-151.45297456,0.000248,2]
[392500217,1761573033199,-167.91541485,0.00024803,2]
[392500218,1761573033209,-500.0,0.00024806,2]
[392500219,1761573033218,-500.0,0.00024806,2]
[392500220,1761573033227,-500.0,0.00024806,2]
[392500221,1761573033237,-500.0,0.00024806,2]
[392500222,1761573033246,-500.0,0.00024806,2]
[392500223,1761573033255,-500.0,0.00024806,2]
[392500224,1761573033265,-500.0,0.00024806,2]
[392500225,1761573033275,-500.0,0.00024806,2]
[392500226,1761573033284,-500.0,0.00024806,2]
[392500227,1761573033294,-500.0,0.00024806,2]
[392500228,1761573033307,-500.0,0.00024806,2]
[392500229,1761573033318,-500.0,0.00024806,2]
[392500230,1761573033456,-500.0,0.00024806,2]
[392500231,1761573033466,-500.0,0.00024806,2]
[392500232,1761573033475,-500.0,0.00024806,2]
[392500233,1761573033486,-500.0,0.00024806,2]
[392500234,1761573033495,-162.26600295,0.00024832,2]
[392500235,1761573033504,-500.0,0.00024873,2]
[392500236,1761573033513,-585.69206866,0.00024873,2]
[392500237,1761573033522,-500.0,0.00024873,2]
[392500238,1761573033531,-523.99533253,0.00024873,2]
[392500239,1761573033540,-163.05,0.0002489,2]
[392500240,1761573033550,-163.74460704,0.0002489,2]
[392500241,1761573033559,-1000.0,0.00024894,2]
[392500242,1761573033570,-51281.75219478,0.00024896,3]
[392500243,1761573033907,162.0,0.00021,4]
[392500247,1761573038650,-478.2839023,0.00021029,2]
[392500248,1761573038660,-500.0,0.0002391,2]
[392500249,1761573038670,-500.0,0.0002391,2]
[392500250,1761573038681,-500.0,0.0002391,2]
[392500251,1761573038690,-391.60164623,0.0002391,2]
[392500252,1761573038700,-210.38975986,0.00024895,2]
[392500253,1761573038710,-500.0,0.00024895,2]
[392500254,1761573038720,-276.07033815,0.00024895,2]
[392500255,1761573038730,-269.03898151,0.00024895,2]
[392500256,1761573038739,-3269.63733816,0.00024896,3]
[392500257,1761573038751,-301.84656667,0.00024896,3]
[392500258,1761573038762,-1814.66994,0.00024896,3]
[392500288,1761573041420,-193.46585204,0.0002169,2]
[392500289,1761573041430,-50976.37169976,0.00024896,3]
[392500290,1761573042034,-1.6e-07,0.00024896,3]
[392500293,1761573043644,-114887.69215942,0.00024896,3]
[392500294,1761573043750,-16.76365872,0.00024896,3]
[392500297,1761573046446,-17.43075052,0.00024896,3]
[392500298,1761573046484,-8057.49668382,0.00024896,3]
[392500299,1761573046495,-84056.91960199,0.00024896,3]
[392500300,1761573046504,-150.72,0.00024896,2]
[392500301,1761573046514,-51506.77949109,0.000249,3]
[392500304,1761573049557,321.0,0.00029375,120]
[392500305,1761573050014,321.0,0.00029365,120]
[392500306,1761573050453,321.0,0.00029355,120]
[392500308,1761573064311,162.0,0.000315,120]
[392500314,1761573267268,633.60008497,0.00037135,50]
[392500326,1761573404954,665.94,0.00037135,60]
[392500327,1761573405198,665.94,0.00037135,60]
[392500328,1761573405443,665.94,0.00037135,60]
[392500329,1761573405678,665.94,0.00037135,60]
[392500330,1761573405925,665.94,0.00037135,60]
[392500331,1761573406278,665.94,0.00037135,60]
[392500332,1761573406585,665.94,0.00037135,60]
[392500333,1761573406702,665.94,0.00037135,60]
[392500334,1761573406951,665.94,0.00037135,60]
[392500335,1761573407230,665.94,0.00037135,60]
[392500336,1761573407471,665.94,0.00037135,60]
[392500337,1761573407725,665.94,0.00037135,60]
[392500338,1761573407967,665.94,0.00037135,60]
[392500339,1761573408231,665.94,0.00037135,60]
[392500340,1761573408461,665.94,0.00037135,60]
[392500341,1761573408702,665.94,0.00037135,60]
[392500342,1761573408940,665.94,0.00037135,60]
[392500343,1761573409190,665.94,0.00037135,60]
[392500344,1761573409500,666.15675423,0.00037135,60]
[392500352,1761573487815,800.0,0.00026986,120]
[392500369,1761573609080,218.57,0.00026986,120]
[392500401,1761573951216,-722.33821,0.00023174,2]
[392500402,1761573951239,-250.0,0.00023221,2]
[392500403,1761573951262,-300.0,0.0002329,2]
[392500404,1761573951462,-1200.0,0.0002329,2]
[392500405,1761573951483,-517.69774431,0.00023291,2]
[392500406,1761573951504,-10781.61,0.00023291,2]
[392500407,1761573951525,-195.0,0.00023322,2]
[392500408,1761573951545,-271.6,0.00023329,2]
[392500409,1761573951572,-168.40143967,0.00023431,2]
[392500410,1761573951597,-500.0,0.00023431,2]
[392500411,1761573951618,-2762.75008785,0.00023432,60]
[392500412,1761573951638,-195.0,0.00023439,2]
[392500413,1761573951659,-250.0,0.00023447,2]
[392500414,1761573951682,-157.85963175,0.00023462,2]
[392500415,1761573951712,-195.0,0.00023481,2]
[392500416,1761573951734,-166.66,0.00023532,30]
[392500417,1761573951755,-878.88671931,0.00023583,2]
[392500418,1761573951776,-151.0,0.00023592,2]
[392500419,1761573951796,-2751.0,0.00023594,2]
[392500420,1761573951818,-6819.97,0.00023668,2]
[392500421,1761573951838,-1432.26,0.00023725,2]
[392500422,1761573951858,-166.47,0.00023821,2]
[392500423,1761573951878,-324.0,0.00023821,2]
[392500424,1761573951899,-878.88671931,0.00023855,2]
[392500425,1761573951922,-157.38170294,0.00023927,2]
[392500426,1761573951947,-166.66,0.00024027,30]
[392500427,1761573951967,-12844.99,0.00024225,2]
[392500428,1761573951990,-878.88671931,0.00024229,2]
[392500429,1761573952011,-878.88671934,0.00024472,2]
[392500430,1761573952033,-166.66,0.00024522,30]
[392500431,1761573952053,-1000.0,0.00024658,2]
[392500432,1761573952076,-3617.24981028,0.00024783,2]
[392500433,1761573952096,-151.45297456,0.00024783,2]
[392500434,1761573952116,-1989.81716781,0.00024783,2]
[392500435,1761573952136,-500.0,0.00024799,2]
[392500436,1761573952159,-151.0,0.00024868,2]
[392500437,1761573952181,-151.0,0.00024868,2]
[392500438,1761573952202,-151.0,0.00024868,2]
[392500439,1761573952223,-151.0,0.00024868,2]
[392500440,1761573952244,-151.0,0.00024868,2]
[392500441,1761573952265,-151.0,0.00024868,2]
[392500442,1761573952287,-151.0,0.00024868,2]
[392500443,1761573952308,-151.0,0.00024868,2]
[392500444,1761573952329,-151.0,0.00024868,2]
[392500445,1761573952350,-151.0,0.00024868,2]
[392500446,1761573952370,-151.0,0.00024868,2]
[392500447,1761573952391,-151.0,0.00024868,2]
[392500448,1761573952411,-151.0,0.00024868,2]
[392500449,1761573952431,-151.0,0.00024868,2]
[392500450,1761573952450,-151.0,0.00024868,2]
[392500451,1761573952471,-151.0,0.00024868,2]
[392500452,1761573952492,-151.0,0.00024868,2]
[392500453,1761573952512,-151.0,0.00024868,2]
[392500454,1761573952532,-151.0,0.00024868,2]
[392500455,1761573952554,-151.0,0.00024868,2]
[392500456,1761573952575,-151.0,0.00024868,2]
[392500457,1761573952609,-151.0,0.00024868,2]
[392500458,1761573952634,-151.0,0.00024868,2]
[392500459,1761573952657,-151.0,0.00024868,2]
[392500460,1761573952683,-151.0,0.00024868,2]
[392500461,1761573952707,-151.0,0.00024868,2]
[392500462,1761573952729,-151.0,0.00024868,2]
[392500463,1761573952752,-151.0,0.00024868,2]
[392500464,1761573952773,-151.0,0.00024868,2]
[392500465,1761573952795,-151.0,0.00024868,2]
[392500466,1761573952816,-151.0,0.00024868,2]
[392500467,1761573952836,-151.0,0.00024868,2]
[392500468,1761573952857,-151.0,0.00024868,2]
[392500469,1761573952878,-151.0,0.00024868,2]
[392500470,1761573952900,-151.0,0.00024868,2]
[392500471,1761573952922,-151.0,0.00024868,2]
[392500472,1761573952948,-151.0,0.00024868,2]
[392500473,1761573952969,-151.0,0.00024868,2]
[392500474,1761573952994,-151.0,0.00024868,2]
[392500475,1761573953022,-151.0,0.00024868,2]
[392500476,1761573953046,-151.0,0.00024868,2]
[392500477,1761573953198,-151.0,0.00024868,2]
[392500478,1761573953243,-151.0,0.00024868,2]
[392500479,1761573953265,-151.0,0.00024868,2]
[392500480,1761573953288,-200.12094942,0.00024872,2]
[392500481,1761573953309,-277.28435499,0.00024872,2]
[392500482,1761573953331,-500.0,0.00024872,2]
[392500483,1761573953353,-289.83452032,0.00024872,2]
[392500484,1761573953372,-500.0,0.00024873,2]
[392500485,1761573953396,-500.0,0.00024873,2]
[392500486,1761573953416,-500.0,0.00024873,2]
[392500487,1761573953436,-500.0,0.00024873,2]
[392500488,1761573953456,-191.77873717,0.00024873,2]
[392500489,1761573953476,-473.06516499,0.00024873,2]
[392500490,1761573953498,-500.0,0.00024873,2]
[392500491,1761573953520,-500.0,0.00024873,2]
[392500492,1761573953541,-500.0,0.00024873,2]
[392500493,1761573953562,-473.75758089,0.00024873,2]
[392500494,1761573953582,-503.74212043,0.00024873,2]
[392500495,1761573953606,-500.0,0.00024873,2]
[392500496,1761573953627,-500.0,0.00024873,2]
[392500497,1761573953647,-501.06467804,0.00024873,2]
[392500498,1761573953667,-500.0,0.00024873,2]
[392500499,1761573953687,-500.0,0.00024873,2]
[392500500,1761573953706,-502.37096136,0.00024873,2]
[392500501,1761573953726,-500.0,0.00024873,2]
[392500502,1761573953747,-51448.6416369,0.00024873,3]
[392500503,1761573953767,-715.56734321,0.00024882,2]
[392500504,1761573953788,-76167.7825582,0.00024883,2]
[392500505,1761573953809,-232460.6382689,0.00024883,2]
[392500506,1761573953833,-45332.45907857,0.00024883,2]
[392500507,1761573953854,-515.87,0.00024891,2]
[392500508,1761573953873,-151.0,0.00024892,7]
[392500509,1761573953895,-500.0,0.00024895,2]
[392500510,1761573953916,-319.37933512,0.00024895,2]
[392500511,1761573953940,-500.0,0.00024895,2]
[392500512,1761573953965,-594.79619573,0.00024895,2]
[392500513,1761573953988,-6983.42337,0.00024896,2]
[392500514,1761573954009,-311.57524725,0.00024896,2]
[392500515,1761573954032,-399.75263795,0.00024896,2]
[392500516,1761573954054,-500.0,0.00024932,2]
[392500517,1761573954076,-500.0,0.00024932,2]
[392500518,1761573954097,-500.0,0.00024932,2]
[392500519,1761573954119,-500.0,0.00024932,2]
[392500520,1761573954140,-500.0,0.00024932,2]
[392500521,1761573954161,-500.0,0.00024932,2]
[392500522,1761573954181,-500.0,0.00024932,2]
[392500523,1761573954202,-17149.5472123,0.00024966,3]
[392500524,1761573954222,-250.0,0.00024976,2]
[392500525,1761573954242,-578.20924308,0.00024976,2]
[392500526,1761573954263,-250.0,0.00024976,2]
[392500527,1761573954283,-250.0,0.00024976,2]
[392500528,1761573954304,-277.35679052,0.00024976,2]
[392500529,1761573954325,-250.0,0.00024976,2]
[392500530,1761573954347,-250.0,0.00024976,2]
[392500531,1761573954369,-250.0,0.00024976,2]
[392500532,1761573954391,-250.0,0.00024976,2]
[392500533,1761573954412,-250.0,0.00024976,2]
[392500534,1761573954434,-250.0,0.00024976,2]
[392500535,1761573954454,-250.0,0.00024976,2]
[392500536,1761573954476,-250.0,0.00024976,2]
[392500537,1761573954511,-250.0,0.00024976,2]
[392500538,1761573954535,-250.0,0.00024976,2]
[392500540,1761573954558,-250.0,0.00024976,2]
[392500541,1761573954580,-250.0,0.00024976,2]
[392500542,1761573954602,-250.0,0.00024976,2]
[392500543,1761573954626,-250.0,0.00024976,2]
[392500544,1761573954648,-250.0,0.00024976,2]
[392500545,1761573954670,-250.0,0.00024976,2]
[392500546,1761573954691,-250.0,0.00024976,2]
[392500547,1761573954712,-250.0,0.00024976,2]
[392500548,1761573954733,-225.02258897,0.00024976,2]
[392500549,1761573954755,-500.0,0.00024976,2]
[392500550,1761573954913,-500.0,0.00024976,2]
[392500551,1761573954936,-500.0,0.00024976,2]
[392500552,1761573954961,-500.0,0.00024976,2]
[392500553,1761573954985,-500.0,0.00024976,2]
[392500554,1761573955007,-500.0,0.00024976,2]
[392500555,1761573955030,-500.0,0.00024976,2]
[392500556,1761573955052,-500.0,0.00024976,2]
[392500557,1761573955076,-500.0,0.00024976,2]
[392500558,1761573955097,-500.0,0.00024976,2]
[392500559,1761573955122,-500.0,0.00024976,2]
[392500560,1761573955144,-500.0,0.00024976,2]
[392500561,1761573955166,-500.0,0.00024976,2]
[392500562,1761573955187,-500.0,0.00024976,2]
[392500563,1761573955209,-500.0,0.00024976,2]
[392500564,1761573955231,-500.0,0.00024976,2]
[392500565,1761573955252,-500.0,0.00024976,2]
[392500566,1761573955274,-500.0,0.00024976,2]
[392500567,1761573955295,-500.0,0.00024976,2]
[392500568,1761573955317,-500.0,0.00024976,2]
[392500569,1761573955337,-574.12855637,0.00024976,2]
[392500570,1761573955360,-500.0,0.00024976,2]
[392500571,1761573955382,-500.0,0.00024976,2]
[392500572,1761573955403,-235.20305303,0.00024976,2]
[392500573,1761573955425,-500.0,0.00024976,2]
[392500574,1761573955447,-500.0,0.00024976,2]
[392500575,1761573955469,-500.0,0.00024976,2]
[392500576,1761573955492,-500.0,0.00024976,2]
[392500577,1761573955515,-500.0,0.00024976,2]
[392500578,1761573955537,-500.0,0.00024976,2]
[392500579,1761573955558,-500.0,0.00024976,2]
[392500580,1761573955582,-500.0,0.00024976,2]
[392500581,1761573955604,-500.0,0.00024976,2]
[392500582,1761573955625,-500.0,0.00024976,2]
[392500583,1761573955646,-500.0,0.00024976,2]
[392500584,1761573955666,-3921.02,0.0002501,2]
[392500585,1761573955688,-166.66,0.00025018,30]
[392500586,1761573955707,-2126.79,0.00025032,2]
[392500587,1761573955728,-515.87,0.00025165,2]
[392500588,1761573955747,-420.0,0.00025275,2]
[392500589,1761573955769,-1680.0,0.00025392,2]
[392500590,1761573955788,-1033.15473545,0.00025421,2]
[392500591,1761573955809,-1000.0,0.00025421,2]
[392500592,1761573955829,-564.04418398,0.00025421,2]
[392500593,1761573955850,-1008.46172367,0.00025421,2]
[392500594,1761573955870,-1000.0,0.00025421,2]
[392500595,1761573955890,-502.85292496,0.00025421,2]
[392500596,1761573955910,-1000.0,0.00025421,2]
[392500597,1761573955931,-515.87,0.00025439,2]
[392500598,1761573955957,-163.06,0.0002548,2]
[392500599,1761573955978,-17149.5472123,0.0002548,3]
[392500600,1761573956003,-166.66,0.00025513,30]
[392500601,1761573956025,-500.0,0.00025518,2]
[392500602,1761573956048,-595.37131296,0.00025524,2]
[392500603,1761573956070,-280.02808486,0.00025646,2]
[392500604,1761573956092,-195.0,0.00025646,2]
[392500605,1761573956114,-515.87,0.00025713,2]
[392500606,1761573956135,-250.0,0.00025775,2]
[392500607,1761573956156,-195.0,0.00025775,2]
[392500608,1761573956178,-17149.5472123,0.0002596,3]
[392500609,1761573956199,-15396.0333094,0.0002596,3]
[392500610,1761573956220,-1500.0,0.00025968,2]
[392500611,1761573956240,-1500.0,0.00025968,2]
[392500612,1761573956261,-1500.0,0.00025968,2]
[392500613,1761573956282,-11374.9605665,0.0002597,2]
[392500614,1761573956303,-501.16205196,0.00025978,2]
[392500615,1761573956324,-345.68088519,0.00025978,2]
[392500616,1761573956344,-500.0,0.00025978,2]
[392500617,1761573956365,-171.27779401,0.00025978,2]
[392500618,1761573956478,-200.0,0.00025978,2]
[392500619,1761573956498,-525.11752755,0.00025978,2]
[392500620,1761573956518,-500.0,0.00025978,2]
[392500621,1761573956538,-500.0,0.00025978,2]
[392500622,1761573956558,-500.0,0.00025978,2]
[392500623,1761573956578,-500.0,0.00025978,2]
[392500624,1761573956598,-500.0,0.00025978,2]
[392500625,1761573956618,-500.0,0.00025978,2]
[392500626,1761573956638,-500.0,0.00025978,2]
[392500627,1761573956659,-515.87,0.00025987,2]
[392500628,1761573956680,-166.66,0.00026009,30]
[392500629,1761573956699,-174.25317236,0.00026066,2]
[392500630,1761573956719,-617.40005154,0.00026072,2]
[392500631,1761573956739,-300.0,0.000261,2]
[392500632,1761573956759,-18191.0,0.00026101,2]
[392500633,1761573956779,-3617.24981027,0.00026144,2]
[392500634,1761573956800,-1989.81716776,0.00026144,2]
[392500635,1761573956820,-18010.18209996,0.0002616,2]
[392500636,1761573956842,-15396.0333094,0.00026163,3]
[392500637,1761573956862,-500.0,0.00026173,2]
[392500638,1761573956883,-500.0,0.00026173,2]
[392500639,1761573956903,-500.0,0.00026173,2]
[392500640,1761573956923,-167.8322669,0.00026173,2]
[392500641,1761573956943,-500.0,0.00026173,2]
[392500642,1761573956968,-500.0,0.00026173,2]
[392500643,1761573956988,-500.0,0.00026173,2]
[392500644,1761573957010,-500.0,0.00026173,2]
[392500645,1761573957032,-500.0,0.00026173,2]
[392500646,1761573957052,-500.0,0.00026173,2]
[392500647,1761573957073,-500.0,0.00026173,2]
[392500648,1761573957093,-500.0,0.00026173,2]
[392500649,1761573957112,-515.92891154,0.00026261,2]
[392500650,1761573957132,-287.61899177,0.00026345,2]
[392500651,1761573957152,-633.04181297,0.00026423,2]
[392500652,1761573957172,-17149.5472123,0.00026506,3]
[392500653,1761573957192,-2000.0,0.00026516,2]
[392500654,1761573957212,-1002.95529828,0.00026516,2]
[392500655,1761573957232,-2000.0,0.00026516,2]
[392500656,1761573957252,-1000.0,0.00026526,2]
[392500657,1761573957273,-421.10564579,0.00026526,2]
[392500658,1761573957293,-1000.0,0.00026526,2]
[392500659,1761573957315,-1006.24497269,0.00026526,2]
[392500660,1761573957335,-640.24385345,0.0002662,2]
[392500661,1761573957356,-15396.0333094,0.00026638,3]
[392500662,1761573957377,-400.0,0.00026663,2]
[392500663,1761573957397,-601.72,0.00026676,2]
[392500664,1761573957418,-1000.0,0.0002671,2]
[392500665,1761573957438,-1000.0,0.00026721,2]
[392500666,1761573957458,-500.0,0.00026721,2]
[392500667,1761573957478,-502.69763553,0.00026721,2]
[392500668,1761573957499,-31.77712285,0.00026721,2]
[392500669,1761573961560,195.0,0.00027474,120]
[392500670,1761573961662,195.0,0.00025848,120]
[392500671,1761573961815,195.0,0.00026462,120]
[392500676,1761574034087,329.7,0.00037133,60]
[392500677,1761574034539,-503.10126105,0.00024873,2]
[392500678,1761574034561,-195.0,0.00024884,2]
[392500679,1761574034584,-500.0,0.00024895,2]
[392500680,1761574034606,-266.50175863,0.00024976,2]
[392500681,1761574034632,-207.7168315,0.00024976,2]
[392500682,1761574034654,-578.20924308,0.00024976,2]
[392500683,1761574034674,-195.0,0.00025264,2]
[392500684,1761574034696,-838.47453328,0.00025728,2]
[392500685,1761574034718,-250.0,0.00025848,2]
[392500686,1761574034737,-5000.0,0.00026341,2]
[392500687,1761574034862,-968.22287715,0.00026721,2]
[392500688,1761574034886,-1000.0,0.00026721,2]
[392500689,1761574034907,-347.56605773,0.00026721,2]
[392500690,1761574034928,-1000.0,0.00026721,2]
[392500691,1761574034950,-154.69191115,0.00026721,2]
[392500692,1761574034975,-1428.05031022,0.00026741,2]
[392500693,1761574035003,-151.0,0.0002688,2]
[392500694,1761574035027,-151.0,0.0002688,2]
[392500695,1761574035049,-151.0,0.0002688,2]
[392500696,1761574035071,-151.0,0.0002688,2]
[392500697,1761574035094,-151.0,0.0002688,2]
[392500698,1761574035116,-500.0,0.0002688,2]
[392500699,1761574035143,-151.0,0.0002688,2]
[392500700,1761574035164,-500.0,0.0002688,2]
[392500701,1761574035186,-250.0,0.0002688,2]
[392500702,1761574035210,-151.0,0.0002688,2]
[392500703,1761574035235,-500.0,0.0002688,2]
[392500704,1761574035258,-250.0,0.0002688,2]
[392500705,1761574035286,-151.0,0.0002688,2]
[392500706,1761574035310,-500.0,0.0002688,2]
[392500707,1761574035333,-250.0,0.0002688,2]
[392500708,1761574035357,-151.0,0.0002688,2]
[392500709,1761574035384,-500.0,0.0002688,2]
[392500710,1761574035406,-250.0,0.0002688,2]
[392500711,1761574035429,-151.0,0.0002688,2]
[392500712,1761574035455,-15396.0333094,0.00026938,3]
[392500713,1761574035482,-17149.5472123,0.00026948,3]
[392500714,1761574035503,-160.73,0.00026986,7]
[392500715,1761574035524,-201.49,0.00026995,2]
[392500716,1761574035545,-5551.068097,0.00027038,2]
[392500717,1761574035565,-402.35955962,0.00027064,2]
[392500718,1761574035585,-2543.64962942,0.00027064,2]
[392500719,1761574035604,-402.3,0.00027068,2]
[392500720,1761574035625,-1500.0,0.00027074,2]
[392500721,1761574035647,-150.0,0.00027099,2]
[392500722,1761574035669,-150.0,0.00027099,2]
[392500723,1761574035690,-150.0,0.00027099,2]
[392500724,1761574035715,-150.0,0.00027099,2]
[392500725,1761574035735,-150.0,0.00027099,2]
[392500726,1761574035755,-150.0,0.00027099,2]
[392500727,1761574035775,-150.0,0.00027099,2]
[392500728,1761574035799,-150.0,0.00027099,2]
[392500729,1761574035820,-150.0,0.00027099,2]
[392500730,1761574035841,-150.93936813,0.00027099,2]
[392500731,1761574035861,-150.0,0.00027099,2]
[392500732,1761574035884,-150.0,0.00027099,2]
[392500733,1761574035911,-150.0,0.00027099,2]
[392500734,1761574035932,-5286.72168105,0.00027228,2]
[392500735,1761574035956,-15396.0333094,0.0002726,3]
[392500736,1761574035981,-1500.0,0.00027268,2]
[392500737,1761574036003,-1589.59351415,0.00027268,2]
[392500738,1761574036023,-1500.0,0.00027268,2]
[392500739,1761574036046,-17149.5472123,0.0002727,3]
[392500740,1761574036067,-476.74869043,0.0002728,3]
[392500741,1761574036088,-194.1495,0.00027304,2]
[392500742,1761574036109,-195.0,0.0002736,2]
[392500743,1761574036130,-1357.60515351,0.00027368,2]
[392500744,1761574036152,-552.88416422,0.00027396,2]
[392500745,1761574036173,-194.09904849,0.00027396,2]
[392500746,1761574036194,-300.0,0.00027397,2]
[392500747,1761574036214,-195.04,0.00027397,2]
[392500748,1761574036235,-492.45,0.00027397,2]
[392500749,1761574036257,-968.88,0.00027397,30]
[392500750,1761574036277,-150.47895714,0.00027397,5]
[392500751,1761574036297,-1678.06,0.000274,2]
[392500752,1761574036318,-1678.06,0.000274,2]
[392500753,1761574036338,-1678.06,0.000274,2]
[392500754,1761574036359,-1678.06,0.000274,2]
[392500755,1761574036381,-587.0,0.00027429,2]
[392500756,1761574036401,-300.0,0.0002747,2]
[392500757,1761574036558,-500.0,0.00027473,2]
[392500758,1761574036579,-300.0,0.00027474,2]
[392500759,1761574036599,-300.0,0.00027474,2]
[392500760,1761574036620,-300.0,0.00027474,2]
[392500761,1761574036642,-300.0,0.00027474,2]
[392500762,1761574036662,-300.0,0.00027474,2]
[392500763,1761574036682,-250.0,0.00027474,2]
[392500764,1761574036702,-150.0,0.00027475,7]
[392500765,1761574036723,-61584.1332378,0.00027492,3]
[392500766,1761574036743,-151.0,0.00027499,7]
[392500767,1761574036764,-1678.06,0.00027502,2]
[392500768,1761574036789,-120046.830486,0.00027502,3]
[392500769,1761574036810,-123168.266476,0.00027502,3]
[392500770,1761574036833,-3617.24981027,0.00027505,2]